Cogmind - Beta 14 @@@ ROGUE MODE // 2024.12.01 @ 13:14:59 Player: akira Result: Destroyed by Autobeam Turret with Autobeam Performance ------------- Evolutions (0) 0 Regions Visited (3) 600 Robots Destroyed (32) 160 Value Destroyed (846) 846 Prototype IDs (0) 0 Alien Tech Used (0) 0 Bonus (0) 0 TOTAL SCORE: 1606 Bonus ------- None Cogmind --------- Core Integrity 0/250 Matter 168/300 Energy 199/200 System Corruption 3% Temperature Cool (6) Movement Rolling (115) Ox1 Location -10/Subcaves Parts ------- > --- POWER (1) -------- Subdweller Power Source > --- PROPULSION (2) --- Light Treads Compact Wheel > --- UTILITY (2) ------ Medium Storage Unit Utility Shielding > --- WEAPON (2) ------- Beam Cannon Rocket Launcher > --- INVENTORY (10) --- Aluminum Leg Aluminum Leg Aluminum Leg Makeshift Flight Unit Structural Scanner Transport Network Coupler Hacking Suite Makeshift Sword Peak State ------------ > --- POWER ------------ Light Nuclear Core > --- PROPULSION ------- Light Treads Light Treads > --- UTILITY ---------- Medium Storage Unit Light Armor Plating > --- WEAPON ----------- Heavy Assault Rifle Makeshift Sword > --- INVENTORY -------- Aluminum Leg Aluminum Leg Aluminum Leg Compact Wheel Compact Wheel Structural Scanner Transport Network Coupler Hacking Suite Beam Cannon Rocket Launcher [Rating: 14] Favorites ----------- Power Light Ion Engine Engine Light Ion Engine Power Core Light Nuclear Core Propulsion Light Treads Treads Light Treads Leg Aluminum Leg Wheel Compact Wheel Utility Medium Storage Unit Device Improved Terrain Scanner Storage Medium Storage Unit Protection Utility Shielding Weapon Beam Cannon Energy Cannon Beam Cannon Ballistic Gun Light Assault Rifle Launcher Rocket Launcher Slashing Weapon Makeshift Sword Build | -11 -10 -10 -10 ------- Run | Yrd Mat Min Sub Slots Evolved . | . . . . Power . | . . . . Propulsion . | . . . . Utility . | . . . . Weapon . | . . . . Parts Attached 36 | 7 4 15 10 Power 5 | 1 1 2 1 Engine 3 | 1 1 . 1 Core 2 | . . 2 . Reactor . | . . . . Propulsion 8 | 2 . 5 1 Treads 4 | 2 . 2 . Leg 2 | . . 2 . Wheel 2 | . . 1 1 Hover . | . . . . Flight . | . . . . Utility 7 | 2 2 3 . Device 3 | 1 1 1 . Storage 2 | 1 1 . . Processor . | . . . . Hackware . | . . . . Protection 2 | . . 2 . Artifact . | . . . . Weapon 16 | 2 1 5 8 Energy Gun . | . . . . Energy Cannon 4 | . . 2 2 Ballistic Gun 7 | 2 1 2 2 Ballistic Cannon . | . . . . Launcher 3 | . . . 3 Special Weapon . | . . . . Impact Weapon . | . . . . Slashing Weapon 2 | . . 1 1 Piercing Weapon . | . . . . Special Melee Weapon . | . . . . Unidentified Prototypes . | . . . . Parts Lost 9 | . 1 5 3 Power 3 | . 1 1 1 Propulsion 3 | . . 2 1 Utility 1 | . . 1 . Weapon 2 | . . 1 1 Highest Loss Streak 2 | . 1 2 1 To Critical Strikes . | . . . . Average Slot Usage (%) 97 | . 100 99 91 Engine 8 | . 14 1 9 Core 4 | . . 12 . Treads 25 | . 28 25 23 Wheel 1 | . . 1 4 Device 5 | . 14 1 . Storage 14 | . 14 14 14 Protection 8 | . . 12 14 Energy Cannon 7 | . . 13 10 Ballistic Gun 17 | . 28 14 7 Peak Build Rating 14 | 9 10 14 13 Average Rating 9 | 5 9 10 9 On Entrance 7 | . 9 10 11 Naked Turns . | . . . . Heaviest Build 24 | 12 17 24 23 Greatest Support 40 | 40 40 40 40 Greatest Overweight (x) 3 | 3 . 1 1 Average Overweight (x) . | . . . . Largest Inventory Capacity 10 | 8 10 10 10 Average Capacity 9 | 7 8 10 10 Most Carried 10 | 7 8 10 10 Average Carried 8 | 4 7 9 9 Final Capacity 10 | 8 10 10 10 Final Carried 10 | 6 8 10 8 Class Distribution -------------------- 68% | Mutant 31% | Scavenger-Mutant Dominant Class ---------------- Mutant | -10/Materials Scavenger-Mutant | -10/Mines Mutant | -10/Subcaves Resources | -11 -10 -10 -10 ----------- Run | Yrd Mat Min Sub Matter Collected 918 | 280 240 272 126 Remotely . | . . . . Salvage Created 903 | 68 302 354 179 Parts 56 | 7 19 19 11 Haulers Intercepted . | . . . . Recyclers Shooed . | . . . . Parts Field Recycled . | . . . . Retrieved Matter . | . . . . Parts Self-Destructed 6 | . . . 6 Prevented . | . . . . Kills | -11 -10 -10 -10 ------- Run | Yrd Mat Min Sub Combat Hostiles Destroyed 29 | . 10 8 11 Guns 16 | . 10 5 1 Cannons 6 | . . 3 3 AOE 7 | . . . 7 Classes Destroyed 6 | 2 3 . 1 Tunneler 1 | 1 . . . Recycler 1 | 1 . . . Operator 1 | . 1 . . Swarmer 11 | . 5 . 6 Grunt 13 | . 5 8 . Subdweller 5 | . . . 5 Best Kill Streak 4 | 1 2 2 4 Combat Bots Only 4 | . 2 2 4 Max Kills in Single Turn 3 | 1 1 1 3 Gunslinging . | . . . . Exploded 3 | . . . 3 Melee . | . . . . Uniques/NPCs Destroyed . | . . . . Combat | -11 -10 -10 -10 -------- Run | Yrd Mat Min Sub Hostile Shots Fired 150 | . 58 53 39 Missed 36 | . 12 12 12 Damage Taken 1490 | . 476 533 481 Core 251 | . 112 63 76 Absorbed by Shields . | . . . . Core Remaining (%) 100 | 100 . . . Volleys Fired 104 | 10 40 30 24 Largest 2 | 2 2 2 2 Hottest 83 | 40 40 83 83 Shots Fired 196 | 20 81 61 34 Gun 147 | 20 81 36 10 Cannon 39 | . . 25 14 Launcher 10 | . . . 10 Special . | . . . . Kinetic 147 | 20 81 36 10 Thermal 39 | . . 25 14 Explosive 10 | . . . 10 Electromagnetic . | . . . . Robot Hit Streak 20 | 6 12 20 10 Robot Miss Streak 5 | 3 5 4 2 Penetration Max . | . . . . Secondary Targets . | . . . . Shots Hit Robots 133 | 13 51 46 23 Core Hits 54 | 4 17 17 16 Critical Kills . | . . . . Critical Parts Destroyed 1 | . . 1 . Critical Strikes 1 | . . 1 . Destroy 1 | . . 1 . Melee Attacks 3 | . . . 3 Impact . | . . . . Slashing 3 | . . . 3 Piercing . | . . . . Sneak Attacks . | . . . . Combat Hostiles . | . . . . Follow-up Attacks . | . . . . Damage Inflicted 2505 | 143 535 645 1182 Guns 1123 | 143 535 352 93 Cannons 467 | . . 293 174 Explosions 915 | . . . 915 Melee . | . . . . Ramming . | . . . . Kinetic 1123 | 143 535 352 93 Thermal 467 | . . 293 174 Explosive 915 | . . . 915 Electromagnetic . | . . . . Impact . | . . . . Slashing . | . . . . Piercing . | . . . . Highest Corruption 3 | . 3 3 3 Average Corruption 2 | . 2 3 3 Corruption Purged . | . . . . Corruption Blocked . | . . . . Effects 68 | . 26 27 15 Message Errors 20 | . 9 7 4 Matter Fused 16 | . 5 9 2 Heat Flow Errors 13 | . 6 3 4 Energy Discharges 5 | . . 3 2 Parts Rejected 1 | . 1 . . Data Loss (minor) 4 | . 1 2 1 Data Loss (major) 4 | . 2 1 1 Misfires 3 | . 1 2 . Alerts 2 | . 1 . 1 Overload Shots . | . . . . Overflow Damage 15 | . . . 15 Projectiles . | . . . . Explosions 15 | . . . 15 Melee . | . . . . Knockbacks . | . . . . Impact . | . . . . Kinetic . | . . . . Secondary . | . . . . Self-Inflicted Damage . | . . . . Shots . | . . . . Rammed . | . . . . Targets Rammed . | . . . . Kicked . | . . . . Crushed . | . . . . Highest Temperature 318 | . 276 318 245 Average Temperature 112 | . 100 120 104 Received Heat Transfer 513 | . 171 306 36 Effects 1 | . . 1 . Energy Bleed 1 | . . 1 . Siege Activations . | . . . . Robots Corrupted . | . . . . Combat Hostiles . | . . . . Parts Fried . | . . . . Impact Corruptions . | . . . . Robots Melted . | . . . . Combat Hostiles . | . . . . Parts Melted . | . . . . Heat Transferred 962 | . . 592 370 Parts Sabotaged . | . . . . Parts Stolen . | . . . . Parts Stripped . | . . . . Power Chain Reactions . | . . . . Alert | -11 -10 -10 -10 ------- Run | Yrd Mat Min Sub Peak Influence 186 | 10 186 105 . Initial 15 | . 6 15 . Average 44 | 3 52 40 . Maximum Alert Level . | . . . . Low Security (%) 100 | 100 100 100 . Level 1 . | . . . . Level 2 . | . . . . Level 3 . | . . . . Level 4 . | . . . . Level 5 . | . . . . High Security . | . . . . Max Security . | . . . . Squads Dispatched 2 | . 2 . . Investigation 1 | . 1 . . Extermination . | . . . . Reinforcement 1 | . 1 . . Assault . | . . . . Garrison . | . . . . Intercept . | . . . . Searches Triggered . | . . . . Construction Impeded . | . . . . Haulers Reinforced . | . . . . Active Scanning Responses . | . . . . Cargo Convoy Interrupts . | . . . . Stealth | -11 -10 -10 -10 --------- Run | Yrd Mat Min Sub Distress Signals 2 | . 2 . . Communications Jammed . | . . . . Distress Signals . | . . . . Times Spotted 48 | . 24 10 14 Peak Tracking Total 6 | . 3 2 6 Tactical Retreats 3 | . 2 . 1 Traps | -11 -10 -10 -10 ------- Run | Yrd Mat Min Sub Traps Triggered 5 | . 3 . 2 Indirectly . | . . . . Trap Hack Attempts . | . . . . Triggered . | . . . . Disarmed . | . . . . Reprogrammed . | . . . . Reused . | . . . . Traps Extracted . | . . . . Installed . | . . . . Triggered . | . . . . Machines | -11 -10 -10 -10 ---------- Run | Yrd Mat Min Sub Machines Disabled 3 | . . . 3 Max in Single Turn 3 | . . . 3 Machines Repaired . | . . . . Machines Dismantled . | . . . . Machines Sabotaged . | . . . . Overloaded Fab Kills . | . . . . Hacking | -11 -10 -10 -10 --------- Run | Yrd Mat Min Sub Machines Accessed 6 | . 5 . 1 Terminals 5 | . 5 . . Fabricators . | . . . . Repair Stations . | . . . . Recycling Units . | . . . . Scanalyzers . | . . . . Garrison Access . | . . . . Total Hacks 18 | . 13 . 5 Successful 10 | . 5 . 5 Failed 8 | . 8 . . Catastrophic 1 | . 1 . . Database Lockouts . | . . . . Manual 13 | . 13 . . Terminals 13 | . 13 . . Fabricators . | . . . . Repair Stations . | . . . . Recycling Units . | . . . . Scanalyzers . | . . . . Garrison Access . | . . . . Terminal Hacks 6 | . 1 . 5 Record 5 | . . . 5 Robot Analysis 1 | . 1 . . Fabricator Hacks . | . . . . Repair Station Hacks . | . . . . Recycling Unit Hacks . | . . . . Scanalyzer . | . . . . Garrison Access Hacks . | . . . . Unauthorized Hacks 4 | . 4 . . Terminals 4 | . 4 . . Botnet 4 | . 4 . . Fabricators . | . . . . Repair Stations . | . . . . Recycling Units . | . . . . Scanalyzers . | . . . . Garrison Access . | . . . . Data Cores Recovered . | . . . . Used . | . . . . Hacking Detections 5 | . 5 . . Full Trace Events 1 | . 1 . . Feedback Events . | . . . . Feedback Blocked . | . . . . Robot Schematics Acquired . | . . . . Robots Built . | . . . . Authchips . | . . . . Time . | . . . . Total Robot Build Rating . | . . . . Part Schematics Acquired . | . . . . Parts Built . | . . . . Authchips . | . . . . Time . | . . . . Total Part Build Rating . | . . . . Parts Repaired . | . . . . Time . | . . . . Parts Recycled . | . . . . Recycled Matter . | . . . . Retrieved Matter . | . . . . Retrieved Components . | . . . . Parts Scanalyzed . | . . . . Part Schematics Acquired . | . . . . Parts Damaged . | . . . . Bothacking | -11 -10 -10 -10 ------------ Run | Yrd Mat Min Sub Used RIF Installer . | . . . . Robots Hacked . | . . . . Non-combat . | . . . . Combat . | . . . . Robot Hacks Applied . | . . . . Relay Couplers Released . | . . . . Fabnet Peak Effective % . | . . . . Robots Rewired . | . . . . Allies Hacked . | . . . . Hacks Repelled . | . . . . Allies | -11 -10 -10 -10 -------- Run | Yrd Mat Min Sub Total Allies . | . . . . Largest Group . | . . . . Highest-Rated Group . | . . . . Highest-Rated Ally . | . . . . Total Orders . | . . . . Ally Attacks . | . . . . Total Damage . | . . . . Kills . | . . . . Allies Corrupted . | . . . . Allies Melted . | . . . . Intel | -11 -10 -10 -10 ------- Run | Yrd Mat Min Sub Robot Analysis Total 1 | . 1 . . Derelict Logs Recovered 3 | . . 1 2 Drone Launches . | . . . . Drone Recoveries . | . . . . Exploration | -11 -10 -10 -10 ------------- Run | Yrd Mat Min Sub Turns Passed 4128 | 154 1442 1363 1169 Spaces Moved 2334 | 69 764 741 760 Core 14 | 14 . . . Treads 1913 | 55 764 644 450 Legs 30 | . . 30 . Wheels 377 | . . 67 310 Hover . | . . . . Flight . | . . . . Fastest Speed 50 | 50 160 115 115 Average Speed 152 | 155 160 155 141 Slowest Speed 240 | 200 160 240 160 Overloaded Moves . | . . . . Propulsion Burnouts . | . . . . Robots Hopped . | . . . . Cave-ins Triggered . | . . . . Exploration Rate (%) 62 | 7 90 99 54 Regions Visited 3 Branch Regions 2 Pre-discovered Areas 3 | . . 1 2 Known Exits Taken . | . . . . Unknown Exits Taken 3 | 1 1 1 . Scrap Searched 1 | . . 1 . Spaces Dug . | . . . . Terrain Destroyed 70 | . . . 70 Melee . | . . . . Projectile . | . . . . AOE 70 | . . . 70 Terrain Rammed . | . . . . Walls Destroyed . | . . . . Machines Disabled . | . . . . Actions | -11 -10 -10 -10 --------- Run | Yrd Mat Min Sub Total 2721 | 96 912 899 814 Wait 209 | . 97 98 14 Move 2331 | 68 763 740 760 Hop . | . . . . Pick Up 22 | 9 5 7 1 Fast Attach 14 | 6 2 5 1 Attach 8 | 1 1 4 2 Detach 1 | . . 1 . Swap 14 | . 1 6 7 Drop 15 | 2 3 8 2 Fire 104 | 10 40 30 24 Melee 3 | . . . 3 Ram . | . . . . Kick . | . . . . Crush . | . . . . Escape Stasis . | . . . . Rewire . | . . . . Trap . | . . . . Miscellaneous . | . . . . Route ------- -11/Scrapyard -10/Materials (discovered 5 exits: [*Mat x2] / [*Min x2] / Sub) -10/Mines (discovered 3 exits: [*Mat x2] / *Sub) -10/Subcaves (discovered 3 exits: Mat x2 / Rec) History --------- Turn | Location | Event 16 | -11/Scrapyard | Discovered new exit (range 15) 155 | -11/Scrapyard | Entered Materials 174 | -10/Materials | Discovered new exit (range 13) 302 | -10/Materials | Build established: Mutant 895 | -10/Materials | Discovered new exit (range 6) 1008 | -10/Materials | Discovered new exit (range 5) 1050 | -10/Materials | Discovered new exit (range 12) 1258 | -10/Materials | Discovered new exit (range 15) 1597 | -10/Materials | Entered Mines 1608 | -10/Mines | Met a Derelict bent on vengeance 1721 | -10/Mines | Core integrity fell below 50% 1753 | -10/Mines | Joined a pair of Derelicts in attacking an 0b10 outpost 1909 | -10/Mines | Received a Rocket Launcher from a helpful Derelict 1943 | -10/Mines | Discovered new exit (range 7) 2013 | -10/Mines | A weapon hastily lodged in a ceiling crevice suddenly fell to the ground 2036 | -10/Mines | Discovered new exit (range 16) 2060 | -10/Mines | Build established: Scavenger-Mutant 2483 | -10/Mines | Learned location of Storage (-8) 2950 | -10/Mines | Discovered new exit (range 6) 2960 | -10/Mines | Entered Subcaves 3113 | -10/Subcaves | Core integrity fell below 20% 3343 | -10/Subcaves | Build established: Mutant 3356 | -10/Subcaves | Learned location of Zion (-6) 3356 | -10/Subcaves | Met a Zionite searching for "candidates" 3424 | -10/Subcaves | Visited Clippyterm 3429 | -10/Subcaves | Identified exit to Materials 3429 | -10/Subcaves | Identified exit to Recycling 3429 | -10/Subcaves | Learned Factory emergency access door positions 3573 | -10/Subcaves | Shifting Twisted Machinery released Sub. Power Source 3790 | -10/Subcaves | A Subdweller sparked back to life 3790 | -10/Subcaves | A Subdweller sparked back to life 4051 | -10/Subcaves | Shifting Twisted Machinery released Sub. Laser 4069 | -10/Subcaves | Shifting Twisted Machinery released Sub. Monowheel 4077 | -10/Subcaves | Learned location of Recycling (-8) 4101 | -10/Subcaves | Shifting Twisted Machinery released Battle Cannon 4129 | -10/Subcaves | Destroyed by Autobeam Turret with Autobeam Last Messages --------------- 03808_ UY-95Q(R) destroyed. 03812_ The unstable cave ceiling collapses. 03817_ Triggered Shrapnel Trap. 03817_ An expanding cloud of shrapnel blasts out in all directions. 03817_ Battle Rifle destroyed. 03943_ Acquired 3 matter. 03953_ System corrupted: Heat flow error (+285). 03972_ System corrupted: Heat flow error (+217). 04027_ System corrupted: Component data lost. Sub. Laser falls loose from the Twisted Machinery. Sub. Monowheel falls loose from the Twisted Machinery. 04077_ Acquired derelict log, extracted data. World map updated: -8/Recycling. Battle Cannon falls loose from the Twisted Machinery. 04125_ S-10 Pest destroyed. 04127_ Destroyed Flight Unit. 04127_ S-10 Pest destroyed. 04127_ Machine disabled. Map ----- +----------------------------------------------------+ | ???????????????????????????????# ?????####### ## | | ???????????????????????????????# ????# # # ## | | ???????????????????????? ?? ?## ?#### " ## | | ????????????????????????? ## ##" # ""### | | ?????????????????????????? "" =""## | | ?????????????????????????? " # "# | | ??????????????????? | | ???????????????????????## t""#?????????? | | ????????????????????????# # "??????????? | | ????????????????????????# ## "??????????? | | ????????????????????????# ??# ??????????? | | ???????????????????????? #???# ???????????? | | ????????????????????????# " ????######???????????? | | ?????????????????????????"" ?????????????????????? | | ???????????????????????